fUSD/lending_fUSD_20260413
["ID","MTS","AMOUNT","RATE_DAILY","PERIOD"]
[420422404,1776093475333,-5730.642534,0.00041096,120]
[420422405,1776093475394,-1898.574914,0.00041096,120]
[420422406,1776093475458,-6206.937245,0.00041096,120]
[420422407,1776093475529,-5730.642534,0.00041096,120]
[420422408,1776093475587,-1898.574914,0.00041096,120]
[420422409,1776093475664,-5730.642534,0.00041096,120]
[420422410,1776093475722,-6206.937245,0.00041096,120]
[420422411,1776093475780,-1898.574914,0.00041096,120]
[420422412,1776093475852,-5730.642534,0.00041096,120]
[420422413,1776093475911,-6206.937245,0.00041096,120]
[420422414,1776093476005,-1898.574914,0.00041096,120]
[420422415,1776093476065,-5730.642534,0.00041096,120]
[420422416,1776093476138,-6206.937245,0.00041096,120]
[420422417,1776093476195,-1898.574914,0.00041096,120]
[420422418,1776093476280,-5730.642534,0.00041096,120]
[420422419,1776093476338,-6206.937245,0.00041096,120]
[420422420,1776093476416,-1898.574914,0.00041096,120]
[420422421,1776093476474,-5730.642534,0.00041096,120]
[420422422,1776093476548,-6206.937245,0.00041096,120]
[420422423,1776093476605,-1898.574914,0.00041096,120]
[420422424,1776093476668,-5730.642534,0.00041096,120]
[420422425,1776093476734,-6206.937245,0.00041096,120]
[420422426,1776093476796,-1898.574914,0.00041096,120]
[420422427,1776093476865,-1898.574914,0.00041096,120]
[420422428,1776093476941,-5730.642534,0.00041096,120]
[420422429,1776093477004,-1898.574914,0.00041096,120]
[420422430,1776093477078,-5730.642534,0.00041096,120]
[420422431,1776093477145,-1898.574914,0.00041096,120]
[420422432,1776093477211,-5730.642534,0.00041096,120]
[420422433,1776093477275,-1898.574914,0.00041096,120]
[420422434,1776093477344,-5730.642534,0.00041096,120]
[420422435,1776093477409,-1898.574914,0.00041096,120]
[420422436,1776093477481,-1524.956609,0.00041096,120]
[420422437,1776093477584,-5730.642534,0.00041096,120]
[420422438,1776093477673,-1898.574914,0.00041096,120]
[420422439,1776093477730,-5730.642534,0.00041096,120]
[420422440,1776093477786,-1524.956609,0.00041096,120]
[420422441,1776093477842,-1898.574914,0.00041096,120]
[420422442,1776093477904,-5730.642534,0.00041096,120]
[420422443,1776093477962,-1524.956609,0.00041096,120]
[420422444,1776093478018,-1898.574914,0.00041096,120]
[420422445,1776093478083,-5730.642526,0.00041096,120]
[420422446,1776093478165,-1898.574914,0.00041096,120]
[420422447,1776093478240,-1524.956609,0.00041096,120]
[420422448,1776093478297,-1898.574914,0.00041096,120]
[420422449,1776093478377,-1524.956609,0.00041096,120]
[420422450,1776093478450,-1898.574913,0.00041096,120]
[420422451,1776093478522,-1524.956609,0.00041096,120]
[420422452,1776093478578,-1143.29,0.00041096,120]
[420422453,1776093478642,-152.0,0.000412,120]
[420422454,1776093478700,-776.72,0.00041207,90]
[420422455,1776093478756,-2195.1,0.00041246,30]
[420422456,1776093478824,-1864.68,0.0004127,85]
[420422457,1776093478941,-500.0,0.000414,120]
[420422458,1776093479007,-1100.0,0.00041442,30]
[420422459,1776093479078,-1000.0,0.000415,120]
[420422460,1776093479140,-500.0,0.000415,45]
[420422461,1776093479204,-4428.92770159,0.000415,120]
[420422462,1776093479274,-466.98796033,0.000415,45]
[420422463,1776093479330,-150.0,0.000415,65]
[420422464,1776093479395,-17729.40936852,0.000415,120]
[420422465,1776093479472,-1000.0,0.00041524,120]
[420422466,1776093479530,-302.0,0.00041538,120]
[420422467,1776093479600,-216.63230006,0.00041591,120]
[420422468,1776093479665,-151.29546952,0.00041633,120]
[420422469,1776093479753,-1528.0,0.00041644,120]
[420422470,1776093479815,-5000.0,0.00041671,30]
[420422471,1776093479879,-1000.0,0.00041671,30]
[420422472,1776093479944,-1000.0,0.00041671,30]
[420422473,1776093480033,-1000.0,0.00041671,30]
[420422474,1776093480119,-1038.73,0.00041695,120]
[420422475,1776093480195,-531.54,0.00041695,120]
[420422476,1776093480573,-5385.0,0.00041695,120]
[420422477,1776093480646,-400.07,0.00041695,120]
[420422478,1776093480726,-10322.0,0.000417,117]
[420422479,1776093480796,-152.0,0.000418,120]
[420422480,1776093480873,-580.49,0.00041815,120]
[420422481,1776093480933,-1118.96519989,0.0004188,120]
[420422482,1776093481004,-166.66683724,0.00041891,120]
[420422483,1776093481065,-150.0,0.000419,120]
[420422484,1776093481163,-2266.0,0.000419,120]
[420422485,1776093481226,-151.0,0.000419,120]
[420422486,1776093481284,-507.72822901,0.000419,120]
[420422487,1776093481366,-205.16903986,0.000419,120]
[420422488,1776093481453,-153.2,0.00041902,30]
[420422489,1776093481508,-1100.0,0.00041909,30]
[420422490,1776093481586,-2500.0,0.00041917,120]
[420422491,1776093481678,-2500.0,0.00041917,120]
[420422492,1776093481749,-2500.0,0.00041917,120]
[420422493,1776093481807,-2500.0,0.00041917,120]
[420422494,1776093481865,-2500.0,0.00041917,120]
[420422495,1776093481947,-2500.0,0.00041917,120]
[420422496,1776093482007,-2500.0,0.00041917,120]
[420422497,1776093482070,-2500.0,0.00041917,120]
[420422498,1776093482135,-2048.5057087,0.00041917,120]
[420422499,1776093482219,-445.63,0.00041933,90]
[420422500,1776093482285,-874.1885194,0.00041999,30]
[420422501,1776093482359,-1000.0,0.00042,120]
[420422502,1776093482429,-1000.0,0.00042,120]
[420422503,1776093482490,-500.0,0.00042,120]
[420422504,1776093482553,-500.0,0.00042,120]
[420422505,1776093482625,-1000.0,0.00042,120]
[420422506,1776093482686,-2328.10238215,0.00042,30]
[420422507,1776093482762,-168.54,0.00042,120]
[420422508,1776093482833,-2000.0,0.00042,120]
[420422509,1776093482963,-2000.0,0.00042,120]
[420422510,1776093483043,-2000.0,0.00042,120]
[420422511,1776093483106,-2000.0,0.00042,120]
[420422512,1776093483176,-2000.0,0.00042,120]
[420422513,1776093483234,-2000.0,0.00042,120]
[420422514,1776093483305,-2000.0,0.00042,120]
[420422515,1776093483370,-2000.0,0.00042,120]
[420422516,1776093483469,-2011.45,0.00042,120]
[420422517,1776093483544,-500.0,0.00042,45]
[420422518,1776093483609,-1387.64651339,0.00042,120]
[420422519,1776093483673,-338.42901801,0.00042,120]
[420422520,1776093483738,-124877.91389334,0.00042,120]
[420422521,1776093483798,-212.04868631,0.00042,120]
[420422522,1776093483863,-9650.99915288,0.00042,61]
[420422523,1776093483925,-1098.50863181,0.00042,120]
[420422524,1776093483999,-6018.79116806,0.00042,120]
[420422525,1776093484066,-184.71473232,0.00042,120]
[420422526,1776093484132,-1216.31646891,0.00042,120]
[420422527,1776093484201,-134524.54135723,0.00042,120]
[420422528,1776093484273,-580.16697533,0.00042,60]
[420422529,1776093484346,-978.55236814,0.00042,120]
[420422530,1776093484438,-2000.0,0.00042,120]
[420422531,1776093484525,-1000.0,0.00042,120]
[420422532,1776093484587,-1000.0,0.00042,120]
[420422533,1776093484657,-1000.0,0.00042,120]
[420422534,1776093484730,-1000.0,0.00042,120]
[420422535,1776093484805,-1000.0,0.00042,120]
[420422536,1776093484879,-9881.8626394,0.00042,120]
[420422537,1776093484947,-1000.0,0.00042,120]
[420422538,1776093485023,-1000.0,0.00042,120]
[420422539,1776093485083,-2000.0,0.00042,120]
[420422540,1776093485152,-1000.0,0.00042,120]
[420422541,1776093485217,-300.0,0.00042,120]
[420422542,1776093485288,-500.0,0.00042,120]
[420422543,1776093485351,-500.0,0.00042021,60]
[420422544,1776093485431,-1864.69,0.0004205,91]
[420422545,1776093485497,-517.51073208,0.00042068,90]
[420422546,1776093485561,-5429.2026719,0.000421,120]
[420422547,1776093485637,-200.0,0.00042108,120]
[420422548,1776093485702,-940.51180587,0.00042121,120]
[420422549,1776093485781,-150.0,0.00042173,120]
[420422550,1776093485842,-6541.31242254,0.0004219,120]
[420422551,1776093485917,-500.0,0.00042191,120]
[420422552,1776093485978,-500.0,0.00042191,120]
[420422553,1776093486067,-500.0,0.00042191,120]
[420422554,1776093486131,-500.0,0.00042191,120]
[420422555,1776093486238,-500.0,0.00042191,120]
[420422556,1776093486338,-500.0,0.00042191,120]
[420422557,1776093486407,-500.0,0.00042191,120]
[420422558,1776093486487,-500.0,0.00042191,120]
[420422559,1776093486549,-500.0,0.00042191,120]
[420422560,1776093486619,-500.0,0.00042191,120]
[420422561,1776093486707,-500.0,0.00042191,120]
[420422562,1776093486797,-500.0,0.00042191,120]
[420422563,1776093486903,-500.0,0.00042191,120]
[420422564,1776093486987,-500.0,0.00042191,120]
[420422565,1776093487089,-500.0,0.00042191,120]
[420422566,1776093487171,-500.0,0.00042191,120]
[420422567,1776093487233,-500.0,0.00042191,120]
[420422568,1776093487303,-500.0,0.00042191,120]
[420422569,1776093487364,-500.0,0.00042191,120]
[420422570,1776093487427,-500.0,0.00042191,120]
[420422571,1776093487504,-500.0,0.00042191,120]
[420422572,1776093487606,-500.0,0.00042191,120]
[420422573,1776093487696,-500.0,0.00042191,120]
[420422574,1776093487806,-500.0,0.00042191,120]
[420422575,1776093487924,-500.0,0.00042191,120]
[420422576,1776093487992,-465.91632648,0.00042191,120]
[420422577,1776093488061,-222.38549189,0.00042191,120]
[420422578,1776093488126,-500.0,0.00042191,120]
[420422579,1776093488193,-500.0,0.00042191,120]
[420422580,1776093488261,-500.0,0.00042191,120]
[420422581,1776093488337,-500.0,0.00042191,120]
[420422582,1776093488410,-500.0,0.00042191,120]
[420422583,1776093488494,-500.0,0.00042191,120]
[420422584,1776093488581,-500.0,0.00042191,120]
[420422585,1776093488670,-500.0,0.00042191,120]
[420422586,1776093488749,-500.0,0.00042191,120]
[420422587,1776093488834,-500.0,0.00042191,120]
[420422588,1776093488907,-500.0,0.00042191,120]
[420422589,1776093488987,-500.0,0.00042191,120]
[420422590,1776093489051,-500.0,0.00042191,120]
[420422591,1776093489117,-500.0,0.00042191,120]
[420422592,1776093489178,-500.0,0.00042191,120]
[420422593,1776093489259,-500.0,0.00042191,120]
[420422594,1776093489786,-500.0,0.00042191,120]
[420422595,1776093489866,-500.0,0.00042191,120]
[420422596,1776093489934,-500.0,0.00042191,120]
[420422597,1776093490028,-500.0,0.00042191,120]
[420422598,1776093490115,-500.0,0.00042191,120]
[420422599,1776093490219,-500.0,0.00042191,120]
[420422600,1776093490288,-500.0,0.00042191,120]
[420422601,1776093490360,-500.0,0.00042191,120]
[420422602,1776093490439,-500.0,0.00042191,120]
[420422603,1776093490514,-500.0,0.00042191,120]
[420422604,1776093490575,-500.0,0.00042191,120]
[420422605,1776093490654,-500.0,0.00042191,120]
[420422606,1776093490718,-500.0,0.00042191,120]
[420422607,1776093490798,-500.0,0.00042191,120]
[420422608,1776093490877,-500.0,0.00042191,120]
[420422609,1776093490972,-242.41165196,0.00042191,120]
[420422610,1776093491043,-1528.0,0.00042192,120]
[420422611,1776093491123,-2208.77,0.000422,30]
[420422612,1776093491202,-198956.0,0.000423,60]
[420422613,1776093491272,-1064.97100009,0.00042307,120]
[420422614,1776093491337,-1031.0276002,0.00042313,120]
[420422615,1776093491422,-1100.0,0.00042377,30]
[420422616,1776093491513,-152.0,0.000424,120]
[420422617,1776093491596,-15299.17527636,0.000424,118]
[420422618,1776093491661,-3000.0,0.00042465,120]
[420422619,1776093491735,-3000.0,0.00042465,120]
[420422620,1776093491801,-3000.0,0.00042465,120]
[420422621,1776093491875,-3000.0,0.00042465,120]
[420422622,1776093491945,-3000.0,0.00042465,120]
[420422623,1776093492013,-3000.0,0.00042465,120]
[420422624,1776093492077,-3000.0,0.00042465,120]
[420422625,1776093492158,-3000.0,0.00042465,120]
[420422626,1776093492227,-3000.0,0.00042465,120]
[420422627,1776093492290,-3000.0,0.00042465,120]
[420422628,1776093492358,-3000.0,0.00042465,120]
[420422629,1776093492445,-3000.0,0.00042465,120]
[420422630,1776093492547,-3000.0,0.00042465,120]
[420422631,1776093492645,-3000.0,0.00042465,120]
[420422632,1776093492726,-3000.0,0.00042465,120]
[420422633,1776093492806,-3000.0,0.00042465,120]
[420422634,1776093492894,-3000.0,0.00042465,120]
[420422635,1776093492992,-1536.40416558,0.00042465,120]
[420422636,1776093493072,-259.70787358,0.00042465,60]
[420422637,1776093493154,-190.0,0.00042466,120]
[420422638,1776093493247,-171.0,0.00042466,120]
[420422639,1776093493343,-487.245997,0.00042466,120]
[420422640,1776093493447,-487.245997,0.00042466,120]
[420422641,1776093493552,-487.245997,0.00042466,120]
[420422642,1776093493629,-487.245997,0.00042466,120]
[420422643,1776093493694,-487.245997,0.00042466,120]
[420422644,1776093493765,-487.245997,0.00042466,120]
[420422645,1776093493838,-487.245997,0.00042466,120]
[420422646,1776093493900,-487.245997,0.00042466,120]
[420422647,1776093493967,-487.245997,0.00042466,120]
[420422648,1776093494034,-487.245997,0.00042466,120]
[420422649,1776093494102,-487.245997,0.00042466,120]
[420422650,1776093494165,-487.245997,0.00042466,120]
[420422651,1776093494227,-487.245997,0.00042466,120]
[420422652,1776093494294,-487.245997,0.00042466,120]
[420422653,1776093494360,-487.245997,0.00042466,120]
[420422654,1776093494453,-487.245997,0.00042466,120]
[420422655,1776093494533,-487.245997,0.00042466,120]
[420422656,1776093494605,-487.245997,0.00042466,120]
[420422657,1776093494707,-487.245997,0.00042466,120]
[420422658,1776093494786,-487.245993,0.00042466,120]
[420422659,1776093494881,-1000.0,0.000425,120]
[420422660,1776093494957,-500.0,0.000425,45]
[420422661,1776093495036,-1050.0,0.000425,120]
[420422662,1776093495104,-10811.23793336,0.000425,120]
[420422663,1776093495195,-2384.00643073,0.000425,120]
[420422664,1776093495262,-1979.97054387,0.000425,60]
[420422665,1776093495325,-150.0,0.000425,68]
[420422666,1776093495397,-5000.0,0.000425,120]
[420422667,1776093495483,-500.0,0.000425,120]
[420422668,1776093495548,-12266.15197371,0.00042503,120]
[420422669,1776093495646,-500.0,0.0004255,120]
[420422670,1776093495709,-837766.61898657,0.00042733,120]
[420422671,1776093495786,-1528.0,0.0004274,120]
[420422672,1776093495857,-1000.0,0.0004274,120]
[420422673,1776093495920,-1000.0,0.0004274,120]
[420422674,1776093495998,-1000.0,0.0004274,120]
[420422675,1776093496068,-1000.0,0.0004274,120]
[420422676,1776093496131,-1000.0,0.0004274,120]
[420422677,1776093496211,-1000.0,0.0004274,120]
[420422678,1776093496273,-1000.0,0.0004274,120]
[420422679,1776093496335,-1000.0,0.0004274,120]
[420422680,1776093496396,-1000.0,0.0004274,120]
[420422681,1776093496479,-1000.0,0.0004274,120]
[420422682,1776093496543,-1000.0,0.0004274,120]
[420422683,1776093496606,-1000.0,0.0004274,120]
[420422684,1776093496680,-1000.0,0.0004274,120]
[420422685,1776093496741,-1000.0,0.0004274,120]
[420422686,1776093496814,-1000.0,0.0004274,120]
[420422687,1776093496907,-1000.0,0.0004274,120]
[420422688,1776093496970,-1000.0,0.0004274,120]
[420422689,1776093497053,-1000.0,0.0004274,120]
[420422690,1776093497131,-1000.0,0.0004274,120]
[420422691,1776093497221,-1000.0,0.0004274,120]
[420422692,1776093497323,-1000.0,0.0004274,120]
[420422693,1776093497391,-1000.0,0.0004274,120]
[420422694,1776093497469,-1000.0,0.0004274,120]
[420422695,1776093497533,-1000.0,0.0004274,120]
[420422696,1776093497594,-1000.0,0.0004274,120]
[420422697,1776093497677,-1000.0,0.0004274,120]
[420422698,1776093497744,-1000.0,0.0004274,120]
[420422699,1776093497808,-1000.0,0.0004274,120]
[420422700,1776093497883,-1000.0,0.0004274,120]
[420422701,1776093497945,-1000.0,0.0004274,120]
[420422702,1776093498012,-1000.0,0.0004274,120]
[420422703,1776093498073,-1000.0,0.0004274,120]
[420422704,1776093498148,-1000.0,0.0004274,120]
[420422705,1776093498221,-1000.0,0.0004274,120]
[420422706,1776093498309,-1000.0,0.0004274,120]
[420422707,1776093498394,-1000.0,0.0004274,120]
[420422708,1776093498455,-1000.0,0.0004274,120]
[420422709,1776093498529,-1000.0,0.0004274,120]
[420422710,1776093499122,-1000.0,0.0004274,120]
[420422711,1776093499191,-1000.0,0.0004274,120]
[420422712,1776093499255,-1000.0,0.0004274,120]
[420422713,1776093499355,-1000.0,0.0004274,120]
[420422714,1776093499438,-1000.0,0.0004274,120]
[420422715,1776093499499,-1000.0,0.0004274,120]
[420422716,1776093499581,-1000.0,0.0004274,120]
[420422717,1776093499657,-1000.0,0.0004274,120]
[420422718,1776093499723,-1000.0,0.0004274,120]
[420422719,1776093499811,-1000.0,0.0004274,120]
[420422720,1776093499890,-1000.0,0.0004274,120]
[420422721,1776093499965,-1000.0,0.0004274,120]
[420422722,1776093500050,-1000.0,0.0004274,120]
[420422723,1776093500113,-1000.0,0.0004274,120]
[420422724,1776093500207,-1000.0,0.0004274,120]
[420422725,1776093500300,-1000.0,0.0004274,120]
[420422726,1776093500364,-1000.0,0.0004274,120]
[420422727,1776093500442,-1000.0,0.0004274,120]
[420422728,1776093500527,-1657.77892422,0.0004274,120]
[420422729,1776093500603,-186.63092821,0.0004274,30]
[420422730,1776093500663,-1047.56,0.0004274,120]
[420422731,1776093500725,-151.0,0.000428,120]
[420422732,1776093500796,-216.63230006,0.00042809,120]
[420422733,1776093500863,-1864.69,0.0004283,96]
[420422734,1776093500938,-1100.0,0.00042844,30]
[420422735,1776093501007,-18901.45370895,0.000429,30]
[420422736,1776093501067,-958.4473674,0.000429,120]
[420422737,1776093501137,-1026.40293291,0.000429,120]
[420422738,1776093501199,-1000.0,0.000429,120]
[420422739,1776093501265,-1000.0,0.000429,120]
[420422740,1776093501335,-1000.0,0.000429,120]
[420422741,1776093501410,-1000.0,0.000429,120]
[420422742,1776093501483,-1000.0,0.000429,120]
[420422743,1776093501600,-175.0,0.00042904,120]
[420422744,1776093501684,-209.0,0.0004295,30]
[420422745,1776093501759,-1000.0,0.0004297,120]
[420422746,1776093501822,-1048.3380608,0.00042999,120]
[420422747,1776093501895,-17853.47346288,0.00043,30]
[420422748,1776093501954,-159.0,0.00043,120]
[420422749,1776093502044,-1000.0,0.00043,90]
[420422750,1776093502115,-2500.0,0.00043,30]
[420422751,1776093502196,-2031.13469793,0.00043,120]
[420422752,1776093502283,-152.0,0.00043,120]
[420422753,1776093502367,-262.64087654,0.00043,120]
[420422754,1776093502476,-3025.74091794,0.00043,120]
[420422755,1776093502566,-282.67423699,0.00043,120]
[420422756,1776093502633,-7300.96641516,0.00043,30]
[420422757,1776093502714,-1000.0,0.00043,120]
[420422758,1776093502790,-2000.0,0.00043,120]
[420422759,1776093502873,-1306.80542323,0.00043,120]
[420422760,1776093502956,-1060.0,0.00043,120]
[420422761,1776093503019,-2500.0,0.00043,120]
[420422762,1776093503093,-3021.79365202,0.00043,120]
[420422763,1776093503158,-150.0,0.00043,120]
[420422764,1776093503227,-1250.0,0.00043,120]
[420422765,1776093503292,-750.0,0.00043,120]
[420422766,1776093503359,-500.0,0.00043,120]
[420422767,1776093503424,-1528.0,0.00043014,120]
[420422768,1776093503484,-211.22,0.00043014,120]
[420422769,1776093503577,-200.0,0.00043068,120]
[420422770,1776093503650,-1603.41,0.00043069,120]
[420422771,1776093503712,-12985.3692529,0.000431,120]
[420422772,1776093503787,-2535.79,0.000431,60]
[420422773,1776093503867,-229.28158246,0.00043113,120]
[420422774,1776093503959,-153.78,0.00043116,120]
[420422775,1776093504044,-823.71,0.00043151,60]
[420422776,1776093504110,-228.07,0.00043151,60]
[420422777,1776093504188,-1603.41,0.00043169,120]
[420422778,1776093504266,-500.0,0.00043188,60]
[420422779,1776093504344,-150.00000001,0.00043199,120]
[420422780,1776093504408,-396.01,0.000432,90]
[420422781,1776093504482,-153.78,0.00043216,120]
[420422782,1776093504555,-1603.41,0.00043269,120]
[420422783,1776093504615,-1528.0,0.00043288,120]
[420422784,1776093504688,-1528.0,0.00043288,120]
[420422785,1776093504769,-1100.0,0.00043312,30]
[420422786,1776093504837,-153.78,0.00043316,120]
[420422787,1776093504910,-2195.1,0.00043352,30]
[420422788,1776093504984,-1603.41,0.00043369,120]
[420422789,1776093505060,-250.0,0.00043398,118]
[420422790,1776093505149,-153.78,0.00043416,120]
[420422791,1776093505239,-250.0,0.0004342,119]
[420422792,1776093505307,-8268.489794,0.00043425,120]
[420422793,1776093505392,-8268.489794,0.00043425,120]
[420422794,1776093505479,-8268.489794,0.00043425,120]
[420422795,1776093505540,-8268.489794,0.00043425,120]
[420422796,1776093505622,-8268.489794,0.00043425,120]
[420422797,1776093505704,-8268.489794,0.00043425,120]
[420422798,1776093505773,-8268.489794,0.00043425,120]
[420422799,1776093505855,-8268.489794,0.00043425,120]
[420422800,1776093505914,-8268.489794,0.00043425,120]
[420422801,1776093505990,-8268.489794,0.00043425,120]
[420422802,1776093506055,-8268.489794,0.00043425,120]
[420422803,1776093506130,-8268.489794,0.00043425,120]
[420422804,1776093506209,-8268.489794,0.00043425,120]
[420422805,1776093506287,-8268.489794,0.00043425,120]
[420422806,1776093506371,-8268.489794,0.00043425,120]
[420422807,1776093506449,-8268.489794,0.00043425,120]
[420422808,1776093506522,-8268.489794,0.00043425,120]
[420422809,1776093506584,-8268.489794,0.00043425,120]
[420422810,1776093506664,-8268.489794,0.00043425,120]
[420422811,1776093506745,-8268.4898,0.00043425,120]
[420422812,1776093506819,-250.0,0.00043433,119]
[420422813,1776093506879,-250.0,0.00043441,120]
[420422814,1776093506939,-250.0,0.00043446,120]
[420422815,1776093507037,-250.0,0.00043449,120]
[420422816,1776093507104,-250.0,0.00043451,120]
[420422817,1776093507177,-250.0,0.00043452,120]
[420422818,1776093507248,-250.0,0.00043452,120]
[420422819,1776093507326,-250.0,0.00043452,120]
[420422820,1776093507419,-250.0,0.00043452,120]
[420422821,1776093507506,-1603.41,0.00043469,120]
[420422822,1776093507575,-500.0,0.00043472,120]
[420422823,1776093507657,-2000.0,0.000435,120]
[420422824,1776093507716,-503.89466683,0.000435,90]
[420422825,1776093508096,-500.0,0.000435,120]
[420422826,1776093508169,-500.0,0.000435,120]
[420422827,1776093508230,-395.3216614,0.000435,120]
[420422828,1776093508292,-150.0,0.000435,71]
[420422829,1776093508366,-2500.0,0.000435,120]
[420422830,1776093508432,-500.0,0.000435,120]
[420422831,1776093508500,-153.78,0.00043516,120]
[420422832,1776093508561,-1000.0,0.0004355,120]
[420422833,1776093508638,-150.0,0.00043552,120]
[420422834,1776093508702,-1528.0,0.00043562,120]
[420422835,1776093508759,-776.72,0.00043564,120]
[420422836,1776093508821,-1603.41,0.00043569,120]
[420422837,1776093508893,-152.0,0.000436,120]
[420422838,1776093508952,-1864.69,0.0004361,101]
[420422839,1776093509018,-153.78,0.00043616,120]
[420422840,1776093509094,-198956.0,0.0004365,60]
[420422841,1776093509162,-1603.41,0.00043669,120]
[420422842,1776093509224,-150.0,0.00043678,120]
[420422843,1776093509296,-500.0,0.0004368,30]
[420422844,1776093509373,-500.0,0.0004368,30]
[420422845,1776093509432,-527.63507244,0.0004368,30]
[420422846,1776093509503,-150.0,0.00043689,120]
[420422847,1776093509573,-1487.02039086,0.000437,120]
[420422848,1776093509634,-153.78,0.00043716,120]
[420422849,1776093509693,-250.0,0.00043726,120]
[420422850,1776093509753,-1603.41,0.00043769,120]
[420422851,1776093509818,-1100.0,0.00043779,120]
[420422852,1776093509882,-250.0,0.00043781,120]
[420422853,1776093509968,-2500.0,0.000438,120]
[420422854,1776093510034,-151.0,0.000438,120]
[420422855,1776093510107,-1218.64232493,0.000438,120]
[420422856,1776093510183,-224.31890919,0.000438,120]
[420422857,1776093510285,-5000.0,0.000438,120]
[420422858,1776093510444,-1000.0,0.000438,120]
[420422859,1776093510544,-153.78,0.00043816,120]
[420422860,1776093510610,-1528.0,0.00043836,120]
[420422861,1776093510674,-1528.0,0.00043836,120]
[420422862,1776093510757,-250.0,0.00043836,120]
[420422863,1776093510825,-500.0,0.00043836,120]
[420422864,1776093510894,-500.0,0.00043836,120]
[420422865,1776093510975,-500.0,0.00043836,120]
[420422866,1776093511053,-500.0,0.00043836,120]
[420422867,1776093511129,-557.12024179,0.00043836,120]
[420422868,1776093511200,-1603.41,0.00043869,120]
[420422869,1776093511257,-1232.451,0.000439,120]
[420422870,1776093511328,-1232.45,0.000439,120]
[420422871,1776093511398,-220.85267106,0.000439,90]
[420422872,1776093511464,-153.78,0.00043916,120]
[420422873,1776093511523,-1000.0,0.0004395,90]
[420422874,1776093511596,-1603.47,0.00043969,120]
[420422875,1776093511663,-4797.54169525,0.00043987,120]
[420422876,1776093511738,-237.98202346,0.00043996,120]
[420422877,1776093511818,-400.0,0.00044,60]
[420422878,1776093511880,-500.0,0.00044,120]
[420422879,1776093511942,-500.0,0.00044,120]
[420422880,1776093511997,-4314.9386125,0.00044,120]
[420422881,1776093512058,-1000.0,0.00044,120]
[420422882,1776093512130,-9025.90807476,0.00044,120]
[420422883,1776093512186,-116901.98499162,0.00044,120]
[420422884,1776093512269,-200000.0,0.00044,50]
[420422885,1776093512326,-299000.0,0.00044,40]
[420422886,1776093512393,-10218.32,0.00044,120]
[420422887,1776093512470,-2515.37,0.00044,120]
[420422888,1776093512529,-2500.0,0.00044,30]
[420422889,1776093512586,-300.0,0.00044,120]
[420422890,1776093512686,-706.0,0.00044,30]
[420422891,1776093512749,-2031.71684881,0.00044,120]
[420422892,1776093512843,-228.77760116,0.00044,120]
[420422893,1776093512917,-221892.73222799,0.00044,120]
[420422894,1776093513010,-1157.11512504,0.00044,120]
[420422895,1776093513097,-1164.23696713,0.00044,120]
[420422896,1776093513169,-211.29915045,0.00044,120]
[420422897,1776093513239,-2000.0,0.00044,120]
[420422898,1776093513314,-178.46009851,0.00044,120]
[420422899,1776093513389,-2276.0,0.00044,120]
[420422900,1776093513465,-466.395458,0.00044,57]
[420422901,1776093513532,-1000.0,0.00044,120]
[420422902,1776093513604,-3723.27019667,0.00044,120]
[420422903,1776093513670,-2005.0,0.00044,120]